fUST/lending_fUST_20250302
["ID","MTS","AMOUNT","RATE_DAILY","PERIOD"]
[355100663,1740892253371,-500.0,0.00023363,2]
[355100664,1740892253380,-500.0,0.00023363,2]
[355100665,1740892253389,-500.0,0.00023363,2]
[355100666,1740892253399,-500.0,0.00023363,2]
[355100667,1740892253409,-695.36,0.00023363,2]
[355100668,1740892253419,-500.0,0.00023363,2]
[355100669,1740892253429,-500.0,0.00023363,2]
[355100670,1740892253439,-500.0,0.00023363,2]
[355100671,1740892253449,-500.0,0.00023363,2]
[355100672,1740892253459,-500.0,0.00023363,2]
[355100673,1740892253470,-500.0,0.00023363,2]
[355100674,1740892253480,-500.0,0.00023363,2]
[355100675,1740892253490,-500.0,0.00023363,2]
[355100676,1740892253500,-500.0,0.00023363,2]
[355100677,1740892253510,-500.0,0.00023363,2]
[355100678,1740892253520,-500.0,0.00023363,2]
[355100679,1740892253530,-569.64,0.00023363,2]
[355100680,1740892253540,-500.0,0.00023363,2]
[355100681,1740892253550,-500.0,0.00023363,2]
[355100682,1740892253560,-500.0,0.00023363,2]
[355100683,1740892253570,-533.7,0.00023363,2]
[355100684,1740892253580,-500.0,0.00023363,2]
[355100685,1740892253590,-500.0,0.00023363,2]
[355100686,1740892253600,-500.0,0.00023363,2]
[355100687,1740892253610,-521.13,0.00023363,2]
[355100688,1740892253620,-500.0,0.00023363,2]
[355100689,1740892253630,-500.0,0.00023363,2]
[355100690,1740892253639,-310.68,0.00023363,2]
[355100691,1740892253650,-1066.58,0.00023363,2]
[355100692,1740892253660,-500.0,0.00023363,2]
[355100693,1740892253669,-500.0,0.00023366,2]
[355100694,1740892253679,-500.0,0.00023366,2]
[355100695,1740892253689,-243.51,0.00023366,2]
[355100696,1740892253699,-500.0,0.00023366,2]
[355100697,1740892253710,-500.0,0.00023367,2]
[355100698,1740892253720,-713.76,0.00023367,2]
[355100699,1740892253730,-1704.26,0.00023367,2]
[355100700,1740892253740,-500.0,0.00023367,2]
[355100701,1740892253749,-500.0,0.00023369,2]
[355100702,1740892253759,-347.36,0.00023369,2]
[355100703,1740892253769,-500.0,0.00023369,2]
[355100704,1740892253778,-500.0,0.00023369,2]
[355100705,1740892253788,-828.84,0.00023369,2]
[355100706,1740892253798,-500.0,0.00023369,2]
[355100707,1740892253807,-500.0,0.00023369,2]
[355100708,1740892253816,-500.0,0.00023369,2]
[355100709,1740892253826,-500.0,0.00023506,2]
[355100710,1740892253836,-2217.56,0.00023632,2]
[355100711,1740892253847,-657.91,0.00023632,2]
[355100712,1740892253857,-500.0,0.00023632,2]
[355100713,1740892253867,-500.0,0.00023632,2]
[355100714,1740892253877,-1115.31,0.00023632,2]
[355100715,1740892253888,-681.02,0.00023632,2]
[355100716,1740892253898,-500.0,0.00023632,2]
[355100717,1740892253908,-2638.3,0.00023632,2]
[355100718,1740892253919,-1596.94,0.00023632,2]
[355100719,1740892253929,-1242.03,0.00023632,2]
[355100720,1740892253939,-500.0,0.00023634,2]
[355100721,1740892253948,-500.0,0.00023634,2]
[355100722,1740892253958,-500.0,0.00023634,2]
[355100723,1740892253968,-500.0,0.00023634,2]
[355100724,1740892253978,-646.94,0.00023634,2]
[355100725,1740892253989,-1538.19,0.00023634,2]
[355100726,1740892254000,-1058.03,0.00023634,2]
[355100727,1740892254010,-500.0,0.00023634,2]
[355100728,1740892254020,-500.0,0.00023634,2]
[355100729,1740892254029,-500.0,0.00023634,2]
[355100730,1740892254041,-500.0,0.00023634,2]
[355100731,1740892254050,-589.69,0.00023634,2]
[355100732,1740892254060,-5372.98,0.00023634,2]
[355100733,1740892254071,-1126.15,0.00023634,2]
[355100734,1740892254082,-559.39,0.00023634,2]
[355100735,1740892254092,-500.0,0.00023634,2]
[355100736,1740892254102,-500.0,0.00023634,2]
[355100737,1740892254115,-500.0,0.00023634,2]
[355100738,1740892254124,-1992.57,0.00023634,2]
[355100739,1740892254134,-533.6,0.00023634,2]
[355100740,1740892254144,-500.0,0.00023634,2]
[355100741,1740892254156,-22341.25,0.00023634,2]
[355100742,1740892254166,-500.0,0.00023637,2]
[355100743,1740892254176,-500.0,0.00023637,2]
[355100744,1740892254186,-500.0,0.00023637,2]
[355100745,1740892254198,-500.0,0.00023637,2]
[355100746,1740892254207,-500.0,0.00023637,2]
[355100747,1740892254218,-586.47,0.00023637,2]
[355100748,1740892254227,-500.0,0.00023637,2]
[355100749,1740892254236,-424.94,0.00023637,2]
[355100750,1740892254246,-373.15495065,0.00023637,2]
[355100751,1740892254256,-500.0,0.00023637,2]
[355100752,1740892254266,-194.75,0.00023637,2]
[355100753,1740892254276,-500.0,0.00023637,2]
[355100754,1740892254285,-500.0,0.00023637,2]
[355100755,1740892254294,-500.0,0.00023637,2]
[355100756,1740892254304,-500.0,0.00023637,2]
[355100757,1740892254313,-355.73,0.00023637,2]
[355100758,1740892254323,-261.03,0.00023637,2]
[355100759,1740892254333,-500.0,0.00023637,2]
[355100760,1740892254342,-500.0,0.00023637,2]
[355100761,1740892254352,-523.45851491,0.00023637,2]
[355100762,1740892254361,-572.14,0.00023637,2]
[355100763,1740892254371,-500.0,0.00023637,2]
[355100764,1740892254381,-695.36,0.00023637,2]
[355100765,1740892254391,-500.0,0.00023637,2]
[355100766,1740892254402,-500.0,0.00023637,2]
[355100767,1740892254411,-500.0,0.00023637,2]
[355100768,1740892254421,-500.0,0.00023637,2]
[355100769,1740892254431,-500.0,0.00023637,2]
[355100770,1740892254441,-500.0,0.00023637,2]
[355100771,1740892254451,-500.0,0.00023637,2]
[355100772,1740892254461,-500.0,0.00023637,2]
[355100773,1740892254471,-500.0,0.00023637,2]
[355100774,1740892254481,-569.64,0.00023637,2]
[355100775,1740892254491,-500.0,0.00023637,2]
[355100776,1740892254500,-500.0,0.00023637,2]
[355100777,1740892254509,-500.0,0.00023637,2]
[355100778,1740892254519,-533.7,0.00023637,2]
[355100779,1740892254528,-500.0,0.00023637,2]
[355100780,1740892254538,-500.0,0.00023637,2]
[355100781,1740892254547,-607.2,0.00023637,2]
[355100782,1740892254557,-521.13,0.00023637,2]
[355100783,1740892254567,-500.0,0.00023637,2]
[355100784,1740892254576,-500.0,0.00023637,2]
[355100785,1740892254588,-1066.58,0.00023637,2]
[355100786,1740892254598,-500.0,0.00023637,2]
[355100787,1740892254608,-500.0,0.0002364,2]
[355100788,1740892254618,-500.0,0.0002364,2]
[355100789,1740892254628,-500.0,0.0002364,2]
[355100790,1740892254638,-500.0,0.00023641,2]
[355100791,1740892254648,-713.76,0.00023641,2]
[355100792,1740892254659,-1704.26,0.00023641,2]
[355100793,1740892254669,-500.0,0.00023641,2]
[355100794,1740892254678,-500.0,0.00023643,2]
[355100795,1740892254688,-500.0,0.00023643,2]
[355100796,1740892254698,-500.0,0.00023643,2]
[355100797,1740892254708,-828.84,0.00023643,2]
[355100798,1740892254717,-500.0,0.00023643,2]
[355100799,1740892254727,-500.0,0.00023643,2]
[355100800,1740892254737,-500.0,0.00023643,2]
[355100801,1740892254747,-420.0,0.00023898,2]
[355100802,1740892254757,-611.1755036,0.000239,2]
[355100803,1740892254767,-2217.56,0.00023906,2]
[355100804,1740892254777,-657.91,0.00023906,2]
[355100805,1740892254787,-500.0,0.00023906,2]
[355100806,1740892254798,-500.0,0.00023906,2]
[355100807,1740892254808,-1115.31,0.00023906,2]
[355100808,1740892254818,-681.02,0.00023906,2]
[355100809,1740892254828,-500.0,0.00023906,2]
[355100810,1740892254838,-2638.3,0.00023906,2]
[355100811,1740892254850,-1596.94,0.00023906,2]
[355100812,1740892254860,-1242.03,0.00023906,2]
[355100813,1740892254870,-500.0,0.00023908,2]
[355100814,1740892254879,-500.0,0.00023908,2]
[355100815,1740892254889,-500.0,0.00023908,2]
[355100816,1740892254899,-500.0,0.00023908,2]
[355100817,1740892254910,-646.94,0.00023908,2]
[355100818,1740892254919,-1538.19,0.00023908,2]
[355100819,1740892254930,-1058.03,0.00023908,2]
[355100820,1740892254940,-500.0,0.00023908,2]
[355100821,1740892254949,-500.0,0.00023908,2]
[355100822,1740892254959,-500.0,0.00023908,2]
[355100823,1740892254970,-500.0,0.00023908,2]
[355100824,1740892254980,-589.69,0.00023908,2]
[355100825,1740892254990,-5372.98,0.00023908,2]
[355100826,1740892255000,-1126.15,0.00023908,2]
[355100827,1740892255010,-559.39,0.00023908,2]
[355100828,1740892255021,-522.76,0.00023908,2]
[355100829,1740892255031,-500.0,0.00023908,2]
[355100830,1740892255040,-500.0,0.00023908,2]
[355100831,1740892255050,-1992.57,0.00023908,2]
[355100832,1740892255059,-533.6,0.00023908,2]
[355100833,1740892255070,-500.0,0.00023908,2]
[355100834,1740892255080,-22341.25,0.00023908,2]
[355100835,1740892255091,-500.0,0.00023911,2]
[355100836,1740892255102,-500.0,0.00023911,2]
[355100837,1740892255113,-500.0,0.00023911,2]
[355100838,1740892255125,-500.0,0.00023911,2]
[355100839,1740892255135,-350.64,0.00023911,2]
[355100840,1740892255145,-500.0,0.00023911,2]
[355100841,1740892255155,-649.29386302,0.00023911,2]
[355100842,1740892255167,-263.94,0.00023911,2]
[355100843,1740892255176,-209.03,0.00023911,2]
[355100844,1740892255186,-500.0,0.00023911,2]
[355100845,1740892255196,-500.0,0.00023911,2]
[355100846,1740892255207,-500.0,0.00023911,2]
[355100847,1740892255218,-500.0,0.00023911,2]
[355100848,1740892255227,-500.0,0.00023911,2]
[355100849,1740892255238,-695.36,0.00023911,2]
[355100850,1740892255248,-500.0,0.00023911,2]
[355100851,1740892255259,-500.0,0.00023911,2]
[355100852,1740892255268,-500.0,0.00023911,2]
[355100853,1740892255279,-500.0,0.00023911,2]
[355100854,1740892255289,-395.05,0.00023911,2]
[355100855,1740892255299,-500.0,0.00023911,2]
[355100856,1740892255309,-500.0,0.00023911,2]
[355100857,1740892255319,-500.0,0.00023911,2]
[355100858,1740892255328,-500.0,0.00023911,2]
[355100859,1740892255338,-569.64,0.00023911,2]
[355100860,1740892255348,-500.0,0.00023911,2]
[355100861,1740892255358,-500.0,0.00023911,2]
[355100862,1740892255368,-500.0,0.00023911,2]
[355100863,1740892255378,-533.7,0.00023911,2]
[355100864,1740892255388,-500.0,0.00023911,2]
[355100865,1740892255398,-500.0,0.00023911,2]
[355100866,1740892255407,-521.13,0.00023911,2]
[355100867,1740892255416,-500.0,0.00023911,2]
[355100868,1740892255426,-271.02,0.00023911,2]
[355100869,1740892255437,-1066.58,0.00023911,2]
[355100870,1740892255447,-500.0,0.00023911,2]
[355100871,1740892255457,-500.0,0.00023914,2]
[355100872,1740892255467,-428.79,0.00023914,2]
[355100873,1740892255477,-201.09,0.00023914,2]
[355100874,1740892255486,-416.63,0.00023915,2]
[355100875,1740892255497,-713.76,0.00023915,2]
[355100876,1740892255506,-1704.26,0.00023915,2]
[355100877,1740892255516,-500.0,0.00023915,2]
[355100878,1740892255526,-500.0,0.00023917,2]
[355100879,1740892255536,-500.0,0.00023917,2]
[355100880,1740892255546,-500.0,0.00023917,2]
[355100881,1740892255555,-828.84,0.00023917,2]
[355100882,1740892255565,-500.0,0.00023917,2]
[355100883,1740892255576,-500.0,0.00023917,2]
[355100884,1740892255586,-500.0,0.00023917,2]
[355100885,1740892255597,-944.07895368,0.00024054,2]
[355100886,1740892255607,-500.0,0.00024109,2]
[355100887,1740892255617,-500.0,0.00024109,2]
[355100888,1740892255627,-647.48,0.00024109,2]
[355100889,1740892255638,-2217.56,0.0002418,2]
[355100890,1740892255648,-657.91,0.0002418,2]
[355100891,1740892255658,-500.0,0.0002418,2]
[355100892,1740892255668,-500.0,0.0002418,2]
[355100893,1740892255678,-1115.31,0.0002418,2]
[355100894,1740892255688,-681.02,0.0002418,2]
[355100895,1740892255699,-500.0,0.0002418,2]
[355100896,1740892255709,-2638.3,0.0002418,2]
[355100897,1740892255719,-1596.94,0.0002418,2]
[355100898,1740892255729,-1242.03,0.0002418,2]
[355100899,1740892255739,-500.0,0.00024182,2]
[355100900,1740892255748,-500.0,0.00024182,2]
[355100901,1740892255759,-500.0,0.00024182,2]
[355100902,1740892255769,-500.0,0.00024182,2]
[355100903,1740892255780,-646.94,0.00024182,2]
[355100904,1740892255790,-1538.19,0.00024182,2]
[355100905,1740892255800,-1058.03,0.00024182,2]
[355100906,1740892255811,-500.0,0.00024182,2]
[355100907,1740892255821,-500.0,0.00024182,2]
[355100908,1740892255831,-500.0,0.00024182,2]
[355100909,1740892255842,-500.0,0.00024182,2]
[355100910,1740892255852,-589.69,0.00024182,2]
[355100911,1740892255863,-5372.98,0.00024182,2]
[355100912,1740892255873,-1126.15,0.00024182,2]
[355100913,1740892255884,-559.39,0.00024182,2]
[355100914,1740892255895,-500.0,0.00024182,2]
[355100915,1740892255906,-500.0,0.00024182,2]
[355100916,1740892255916,-1992.57,0.00024182,2]
[355100917,1740892255926,-533.6,0.00024182,2]
[355100918,1740892255937,-500.0,0.00024182,2]
[355100919,1740892255947,-22341.25,0.00024182,2]
[355100920,1740892255958,-470.98,0.00024185,2]
[355100921,1740892255968,-457.48,0.00024185,2]
[355100922,1740892255978,-500.0,0.00024185,2]
[355100923,1740892255988,-500.0,0.00024185,2]
[355100924,1740892255998,-500.0,0.00024185,2]
[355100925,1740892256008,-464.0939437,0.00024185,2]
[355100926,1740892256018,-556.92,0.00024185,2]
[355100927,1740892256029,-412.46,0.00024185,2]
[355100928,1740892256038,-500.0,0.00024185,2]
[355100929,1740892256049,-500.0,0.00024185,2]
[355100930,1740892256059,-695.36,0.00024185,2]
[355100931,1740892256069,-500.0,0.00024185,2]
[355100932,1740892256080,-500.0,0.00024185,2]
[355100933,1740892256090,-500.0,0.00024185,2]
[355100934,1740892256100,-500.0,0.00024185,2]
[355100935,1740892256111,-500.0,0.00024185,2]
[355100936,1740892256125,-500.0,0.00024185,2]
[355100937,1740892256136,-500.0,0.00024185,2]
[355100938,1740892256146,-500.0,0.00024185,2]
[355100939,1740892256158,-569.64,0.00024185,2]
[355100940,1740892256168,-472.35,0.00024185,2]
[355100941,1740892256178,-566.51,0.00024185,2]
[355100942,1740892256188,-500.0,0.00024185,2]
[355100943,1740892256199,-533.7,0.00024185,2]
[355100944,1740892256211,-500.0,0.00024185,2]
[355100945,1740892256221,-500.0,0.00024185,2]
[355100946,1740892256231,-521.13,0.00024185,2]
[355100947,1740892256241,-500.0,0.00024185,2]
[355100948,1740892256252,-1066.58,0.00024185,2]
[355100949,1740892256263,-500.0,0.00024185,2]
[355100950,1740892256273,-500.0,0.00024188,2]
[355100951,1740892256283,-713.76,0.00024189,2]
[355100952,1740892256293,-1704.26,0.00024189,2]
[355100953,1740892256304,-500.0,0.00024189,2]
[355100954,1740892256314,-500.0,0.00024191,2]
[355100955,1740892256324,-485.73734123,0.00024191,2]
[355100956,1740892256334,-500.0,0.00024191,2]
[355100957,1740892256344,-828.84,0.00024191,2]
[355100958,1740892256354,-500.0,0.00024191,2]
[355100959,1740892256364,-500.0,0.00024191,2]
[355100960,1740892256374,-500.0,0.00024191,2]
[355100961,1740892256385,-2217.56,0.00024454,2]
[355100962,1740892256395,-657.91,0.00024454,2]
[355100963,1740892256405,-500.0,0.00024454,2]
[355100964,1740892256415,-500.0,0.00024454,2]
[355100965,1740892256426,-1115.31,0.00024454,2]
[355100966,1740892256436,-681.02,0.00024454,2]
[355100967,1740892256447,-500.0,0.00024454,2]
[355100968,1740892256457,-2638.3,0.00024454,2]
[355100969,1740892256467,-1596.94,0.00024454,2]
[355100970,1740892256477,-1242.03,0.00024454,2]
[355100971,1740892256487,-500.0,0.00024456,2]
[355100972,1740892256497,-500.0,0.00024456,2]
[355100973,1740892256507,-533.08,0.00024456,2]
[355100974,1740892256517,-500.0,0.00024456,2]
[355100975,1740892256527,-646.94,0.00024456,2]
[355100976,1740892256537,-1538.19,0.00024456,2]
[355100977,1740892256548,-1058.03,0.00024456,2]
[355100978,1740892256560,-447.88,0.00024456,2]
[355100979,1740892256571,-500.0,0.00024456,2]
[355100980,1740892256580,-500.0,0.00024456,2]
[355100981,1740892256590,-500.0,0.00024456,2]
[355100982,1740892256601,-589.69,0.00024456,2]
[355100983,1740892256612,-5372.98,0.00024456,2]
[355100984,1740892256623,-1126.15,0.00024456,2]
[355100985,1740892256634,-559.39,0.00024456,2]
[355100986,1740892256644,-500.0,0.00024456,2]
[355100987,1740892256654,-500.0,0.00024456,2]
[355100988,1740892256664,-1992.57,0.00024456,2]
[355100989,1740892256674,-533.6,0.00024456,2]
[355100990,1740892256684,-500.0,0.00024456,2]
[355100991,1740892256695,-22341.25,0.00024456,2]
[355100992,1740892256705,-186.86,0.00024459,2]
[355100993,1740892256714,-500.0,0.00024459,2]
[355100994,1740892256725,-500.0,0.00024459,2]
[355100995,1740892256735,-500.0,0.00024459,2]
[355100996,1740892256744,-500.0,0.00024459,2]
[355100997,1740892256755,-695.36,0.00024459,2]
[355100998,1740892256765,-500.0,0.00024459,2]
[355100999,1740892256775,-583.24,0.00024459,2]
[355101000,1740892256785,-500.0,0.00024459,2]
[355101001,1740892256795,-500.0,0.00024459,2]
[355101002,1740892256806,-500.0,0.00024459,2]
[355101003,1740892256816,-500.0,0.00024459,2]
[355101004,1740892256827,-500.0,0.00024459,2]
[355101005,1740892256837,-500.0,0.00024459,2]
[355101006,1740892256847,-569.64,0.00024459,2]
[355101007,1740892256857,-500.0,0.00024459,2]
[355101008,1740892256867,-533.7,0.00024459,2]
[355101009,1740892256878,-500.0,0.00024459,2]
[355101010,1740892256888,-500.0,0.00024459,2]
[355101011,1740892256898,-521.13,0.00024459,2]
[355101012,1740892256909,-500.0,0.00024459,2]
[355101013,1740892256919,-1066.58,0.00024459,2]
[355101014,1740892256930,-500.0,0.00024459,2]
[355101015,1740892256940,-500.0,0.00024462,2]
[355101016,1740892256951,-713.76,0.00024463,2]
[355101017,1740892256961,-1704.26,0.00024463,2]
[355101018,1740892256971,-500.0,0.00024463,2]
[355101019,1740892256982,-500.0,0.00024465,2]
[355101020,1740892256992,-500.0,0.00024465,2]
[355101021,1740892257002,-828.84,0.00024465,2]
[355101022,1740892257013,-500.0,0.00024465,2]
[355101023,1740892257023,-180.73476296,0.00024465,2]
[355101024,1740892257033,-500.0,0.00024465,2]
[355101025,1740892257043,-913.54156576,0.00024647,2]
[355101026,1740892257053,-380.0,0.00024658,2]
[355101027,1740892257064,-500.0,0.00024658,2]
[355101028,1740892257075,-1497.09520622,0.00024658,2]
[355101029,1740892257085,-500.0,0.00024658,2]
[355101030,1740892257095,-500.0,0.00024658,2]
[355101031,1740892257106,-1497.09520622,0.00024658,2]
[355101032,1740892257118,-500.0,0.00024658,2]
[355101033,1740892257129,-500.0,0.00024658,2]
[355101034,1740892257139,-1497.09520622,0.00024658,2]
[355101035,1740892257151,-500.0,0.00024658,2]
[355101036,1740892257162,-1497.09520622,0.00024658,2]
[355101037,1740892257171,-500.0,0.00024658,2]
[355101038,1740892257182,-1497.09520622,0.00024658,2]
[355101039,1740892257194,-500.0,0.00024658,2]
[355101040,1740892257205,-1497.09520622,0.00024658,2]
[355101041,1740892257215,-500.0,0.00024658,2]
[355101042,1740892257224,-1497.09520622,0.00024658,2]
[355101043,1740892257235,-500.0,0.00024658,2]
[355101044,1740892257245,-1497.09520622,0.00024658,2]
[355101045,1740892257256,-500.0,0.00024658,2]
[355101046,1740892257266,-1497.09520622,0.00024658,2]
[355101047,1740892257276,-1497.09520622,0.00024658,2]
[355101048,1740892257285,-598.10301602,0.00024658,2]
[355101049,1740892257295,-1497.09520622,0.00024658,2]
[355101050,1740892257305,-500.0,0.00024658,2]
[355101051,1740892257315,-1497.09520622,0.00024658,2]
[355101052,1740892257325,-500.0,0.00024658,2]
[355101053,1740892257336,-1497.09520622,0.00024658,2]
[355101054,1740892257347,-1497.09520622,0.00024658,2]
[355101055,1740892257357,-1497.09520622,0.00024658,2]
[355101056,1740892257367,-1497.09520622,0.00024658,2]
[355101057,1740892257376,-1497.09520622,0.00024658,2]
[355101058,1740892257386,-1497.09520622,0.00024658,2]
[355101059,1740892257396,-1497.09520622,0.00024658,2]
[355101060,1740892257406,-1497.09520622,0.00024658,2]
[355101061,1740892257416,-1497.09520622,0.00024658,2]
[355101062,1740892257426,-1497.09520622,0.00024658,2]
[355101063,1740892257436,-1497.09520622,0.00024658,2]
[355101064,1740892257447,-1497.09520622,0.00024658,2]
[355101065,1740892257457,-1497.09520622,0.00024658,2]
[355101066,1740892257468,-1497.09520622,0.00024658,2]
[355101067,1740892257478,-1497.09520622,0.00024658,2]
[355101068,1740892257488,-1497.09520622,0.00024658,2]
[355101069,1740892257498,-1497.09520622,0.00024658,2]
[355101070,1740892257508,-1497.09520622,0.00024658,2]
[355101071,1740892257518,-1497.09520622,0.00024658,2]
[355101072,1740892257528,-1497.09520622,0.00024658,2]
[355101073,1740892257539,-1497.09520622,0.00024658,2]
[355101074,1740892257549,-1497.09520622,0.00024658,2]
[355101075,1740892257560,-1497.09520622,0.00024658,2]
[355101076,1740892257570,-1497.09520622,0.00024658,2]
[355101077,1740892257580,-1497.09520622,0.00024658,2]
[355101078,1740892257591,-1497.09520622,0.00024658,2]
[355101079,1740892257601,-1497.09520622,0.00024658,2]
[355101080,1740892257611,-1497.09520622,0.00024658,2]
[355101081,1740892257621,-1497.09520622,0.00024658,2]
[355101082,1740892257631,-1497.09520622,0.00024658,2]
[355101083,1740892257642,-1497.09520622,0.00024658,2]
[355101084,1740892257652,-1497.09520622,0.00024658,2]
[355101085,1740892257662,-1497.09520622,0.00024658,2]
[355101086,1740892257672,-1497.09520622,0.00024658,2]
[355101087,1740892257682,-1497.09520622,0.00024658,2]
[355101088,1740892257693,-500.0,0.00024673,2]
[355101089,1740892257703,-500.0,0.00024673,2]
[355101090,1740892257713,-500.0,0.00024673,2]
[355101091,1740892257723,-500.0,0.00024673,2]
[355101092,1740892257734,-538.74336501,0.00024673,2]
[355101093,1740892257744,-500.0,0.00024673,2]
[355101094,1740892257754,-500.0,0.00024673,2]
[355101095,1740892257764,-268.46671735,0.00024673,2]
[355101096,1740892257774,-500.0,0.00024673,2]
[355101097,1740892257783,-500.0,0.00024673,2]
[355101098,1740892257794,-635.48681888,0.00024673,2]
[355101099,1740892257803,-500.0,0.00024673,2]
[355101100,1740892257813,-500.0,0.00024673,2]
[355101101,1740892257823,-500.0,0.00024673,2]
[355101102,1740892257834,-500.0,0.00024673,2]
[355101103,1740892257845,-500.0,0.00024673,2]
[355101104,1740892257855,-500.0,0.00024673,2]
[355101105,1740892257865,-500.0,0.00024673,2]
[355101106,1740892257876,-2217.56,0.00024728,2]
[355101107,1740892257886,-657.91,0.00024728,2]
[355101108,1740892257895,-500.0,0.00024728,2]
[355101109,1740892257905,-500.0,0.00024728,2]
[355101110,1740892257916,-1115.31,0.00024728,2]
[355101111,1740892257926,-681.02,0.00024728,2]
[355101112,1740892257937,-417.11,0.00024728,2]
[355101113,1740892257946,-2638.3,0.00024728,2]
[355101114,1740892257957,-1596.94,0.00024728,2]
[355101115,1740892257967,-1242.03,0.00024728,2]
[355101116,1740892257978,-500.0,0.0002473,2]
[355101117,1740892257988,-219.38,0.0002473,2]
[355101118,1740892258191,-500.0,0.0002473,2]
[355101119,1740892258213,-646.94,0.0002473,2]
[355101120,1740892258223,-1538.19,0.0002473,2]
[355101121,1740892258234,-1058.03,0.0002473,2]
[355101122,1740892258244,-500.0,0.0002473,2]
[355101123,1740892258254,-500.0,0.0002473,2]
[355101124,1740892258265,-500.0,0.0002473,2]
[355101125,1740892258275,-589.69,0.0002473,2]
[355101126,1740892258285,-5372.98,0.0002473,2]
[355101127,1740892258295,-1126.15,0.0002473,2]
[355101128,1740892258305,-559.39,0.0002473,2]
[355101129,1740892258314,-500.0,0.0002473,2]
[355101130,1740892258325,-500.0,0.0002473,2]
[355101131,1740892258335,-1992.57,0.0002473,2]
[355101132,1740892258345,-533.6,0.0002473,2]
[355101133,1740892258356,-500.0,0.0002473,2]
[355101134,1740892258366,-22341.25,0.0002473,2]
[355101135,1740892258376,-500.0,0.00024733,2]
[355101136,1740892258386,-595.82,0.00024733,2]
[355101137,1740892258396,-500.0,0.00024733,2]
[355101138,1740892258407,-500.0,0.00024733,2]
[355101139,1740892258416,-695.36,0.00024733,2]
[355101140,1740892258427,-500.0,0.00024733,2]
[355101141,1740892258437,-327.86,0.00024733,2]
[355101142,1740892258447,-500.0,0.00024733,2]
[355101143,1740892258458,-500.0,0.00024733,2]
[355101144,1740892258468,-511.84,0.00024733,2]
[355101145,1740892258478,-500.0,0.00024733,2]
[355101146,1740892258488,-500.0,0.00024733,2]
[355101147,1740892258498,-569.64,0.00024733,2]
[355101148,1740892258508,-500.0,0.00024733,2]
[355101149,1740892258519,-533.7,0.00024733,2]
[355101150,1740892258528,-406.42,0.00024733,2]
[355101151,1740892258539,-445.2529613,0.00024733,2]
[355101152,1740892258549,-521.13,0.00024733,2]
[355101153,1740892258559,-500.0,0.00024733,2]
[355101154,1740892258569,-1066.58,0.00024733,2]
[355101155,1740892258579,-500.0,0.00024733,2]
[355101156,1740892258590,-500.0,0.00024736,2]
[355101157,1740892258600,-713.76,0.00024737,2]
[355101158,1740892258610,-1704.26,0.00024737,2]
[355101159,1740892258620,-500.0,0.00024737,2]
[355101160,1740892258630,-284.14,0.00024739,2]
[355101161,1740892258640,-500.0,0.00024739,2]
[355101162,1740892258650,-828.84,0.00024739,2]